bitfinex-derivatives/quotes_BNBF0:USTF0_20251219
["timestamp","ask_amount","ask_price","bid_price","bid_amount"]
[1766140598162,1.18521916,844.98,843.88,0.88694189]
[1766140598366,1.18521916,844.97,843.88,0.88694189]
[1766140598661,1.18521916,844.96,843.92,0.88694189]
[1766140598865,1.18521916,844.95,843.89,0.88694189]
[1766140599061,1.18521916,844.94,843.89,0.88694189]
[1766140599360,1.18521916,844.93,843.89,0.88694189]
[1766140599564,1.18521916,844.92,843.89,0.88694189]
[1766140599764,1.18521916,844.91,843.89,0.88694189]
[1766140599964,1.18521916,844.9,843.92,0.88694189]
[1766140600160,1.18521916,844.89,843.92,0.88694189]
[1766140600364,1.18521916,844.88,843.97,0.88694189]
[1766140600565,1.18521916,844.87,843.97,0.88694189]
[1766140600764,0.20598298,845.06,843.97,0.88694189]
[1766140601066,0.20598298,845.06,843.91,0.88694189]
[1766140601261,0.20598298,845.06,843.97,0.88694189]
[1766140601861,0.20598298,845.06,844.03,0.88694189]
[1766140602065,0.20598298,845.06,844.02,0.88694189]
[1766140602960,0.20598298,845.06,844.03,0.88694189]
[1766140603161,0.20598298,845.06,844.02,0.88694189]
[1766140603964,0.20598298,845.06,844.03,0.88694189]
[1766140604965,0.20598298,845.06,843.97,0.88694189]
[1766140605961,0.20598298,845.06,844.03,0.88694189]
[1766140606966,0.20598298,845.06,843.98,0.88694189]
[1766140608268,0.20598298,845.06,844.02,0.88694189]
[1766140608967,0.20598298,845.06,844.08,0.88694189]
[1766140609170,0.20598298,845.06,844.04,0.88694189]
[1766140609370,0.20598298,845.06,844.09,0.88694189]
[1766140609968,0.20598298,845.06,844.12,0.88694189]
[1766140610168,1.39110235,845.06,844.12,0.88694189]
[1766140610368,1.18511937,845.05,844.11,0.88694189]
[1766140610568,1.18511937,845.04,844.11,0.88694189]
[1766140610769,1.18511937,845.03,844.11,0.88694189]
[1766140610968,1.18511937,845.02,844.11,0.88694189]
[1766140611166,1.1849384,845.01,844.09,0.88694189]
[1766140611465,0.20598298,845.06,844.09,0.88694189]
[1766140611965,0.20598298,845.06,844.1,0.88694189]
[1766140612172,0.20598298,845.06,844.18,0.88694189]
[1766140612371,0.20598298,845.06,844.17,0.88694189]
[1766140613471,0.20598298,845.06,844.16,0.88694189]
[1766140614074,0.20598298,845.06,844.21,0.88694189]
[1766140614372,0.20598298,845.06,844.16,0.88694189]
[1766140615475,0.20598298,845.06,844.15,0.88694189]
[1766140616374,0.20598298,845.06,844.14,0.88694189]
[1766140617172,0.20598298,845.06,844.1,0.88694189]
[1766140617378,0.20598298,845.06,844.1,0.88394933]
[1766140617775,0.20598298,845.06,844.15,0.88394933]
[1766140618178,0.20598298,845.06,844.16,0.88394933]
[1766140618378,0.20598298,845.06,844.15,0.88394933]
[1766140619175,0.20598298,845.06,844.1,0.88394933]
[1766140619378,0.20598298,845.06,844.13,0.88394933]
[1766140620376,0.20598298,845.06,844.15,0.88394933]
[1766140620577,0.20598298,845.06,844.16,0.88394933]
[1766140621575,0.20598298,845.06,844.15,0.88394933]
[1766140622078,0.20598298,845.06,844.14,0.88394933]
[1766140622275,0.20598298,845.06,843.24,2.9523509]
[1766140622276,0.20598298,845.06,844.13,0.88394933]
[1766140622478,0.20598298,845.06,844.17,0.88394933]
[1766140623378,0.20598298,845.06,844.16,0.88394933]
[1766140624375,0.20598298,845.06,844.11,0.88394933]
[1766140626080,0.20598298,845.06,844.1,0.88394933]
[1766140626281,0.20598298,845.06,844.09,0.88394933]
[1766140626678,0.20598298,845.06,844.08,0.88394933]
[1766140628081,0.20598298,845.06,844.04,0.88394933]
[1766140628483,0.20598298,845.06,844.08,0.88394933]
[1766140629281,0.20598298,845.06,844.06,0.88394933]
[1766140629483,0.20598298,845.06,844.05,0.88394933]
[1766140629886,0.20598298,845.06,844.11,0.88394933]
[1766140630284,0.20598298,845.06,844.1,0.88394933]
[1766140630488,0.20598298,845.06,844.05,0.88394933]
[1766140630787,0.20598298,845.06,844.03,0.88394933]
[1766140632283,0.20598298,845.06,844.06,0.88394933]
[1766140632786,0.20598298,845.06,844.0,0.88394933]
[1766140633889,0.20598298,845.06,843.92,0.88394933]
[1766140635592,0.20598298,845.06,843.9,0.88394933]
[1766140635891,0.20598298,845.06,843.86,0.88394933]
[1766140636587,0.20598298,845.06,843.82,0.88394933]
[1766140637290,0.20598298,845.06,843.83,0.88394933]
[1766140637791,0.20598298,845.06,843.75,0.88394933]
[1766140638286,0.20598298,845.06,843.76,0.88394933]
[1766140638587,0.20598298,845.06,843.75,0.88394933]
[1766140638794,0.20598298,845.06,843.73,0.88394933]
[1766140639992,1.38942191,845.06,843.72,0.88394933]
[1766140640288,1.18343893,845.05,843.72,0.88394933]
[1766140640688,1.17872802,845.0,843.57,0.88394933]
[1766140640893,1.18343893,844.99,843.71,0.88394933]
[1766140641194,1.18343893,844.98,843.71,0.88394933]
[1766140641395,1.18343893,844.97,843.7,0.88394933]
[1766140641592,1.18343893,844.96,843.7,0.88394933]
[1766140641793,1.18343893,844.95,843.73,0.88394933]
[1766140641997,1.18343893,844.94,843.73,0.88394933]
[1766140642192,1.18343893,844.93,843.72,0.88394933]
[1766140642396,1.18343893,844.92,843.65,0.88394933]
[1766140642592,1.18343893,844.91,843.65,0.88394933]
[1766140642794,1.18343893,844.9,843.59,0.88394933]
[1766140642994,1.18343893,844.89,843.64,0.88394933]
[1766140643198,1.18343893,844.88,843.64,0.88394933]
[1766140643495,1.18343893,844.87,843.63,0.88394933]
[1766140643696,1.18343893,844.86,843.63,0.88394933]
[1766140643894,1.18343893,844.85,843.68,0.88394933]
[1766140644193,0.20598298,845.06,843.64,0.88394933]
[1766140644399,1.38675165,845.06,843.65,0.88394933]
[1766140644696,1.18076867,845.05,843.72,0.88394933]
[1766140644898,1.18076867,845.04,843.76,0.88394933]
[1766140645096,1.18076867,845.03,843.76,0.88394933]
[1766140645398,1.18076867,845.02,843.74,0.88394933]
[1766140645592,1.18076867,845.01,843.8,0.88394933]
[1766140645794,1.18076867,845.0,843.78,0.88394933]
[1766140645993,1.18076867,844.99,843.74,0.88394933]
[1766140646192,1.18076867,844.98,843.74,0.88394933]
[1766140646393,1.18076867,844.97,843.75,0.88394933]
[1766140646698,1.18076867,844.96,843.77,0.88394933]
[1766140646994,1.18076867,844.95,843.77,0.88394933]
[1766140647195,1.18076867,844.94,843.77,0.88394933]
[1766140647394,1.18076867,844.93,843.78,0.88394933]
[1766140647595,1.18076867,844.92,843.81,0.88394933]
[1766140647797,0.20598298,845.06,843.81,0.88394933]
[1766140648401,0.20598298,845.06,843.8,0.88394933]
[1766140648897,0.20598298,845.06,843.79,0.88394933]
[1766140649300,0.20598298,845.06,843.8,0.88394933]
[1766140649501,0.20598298,845.06,843.79,0.88394933]
[1766140650001,0.20598298,845.06,843.75,0.88394933]
[1766140650498,0.20598298,845.06,843.74,0.88394933]
[1766140650896,1.17872802,845.05,843.7,0.88394933]
[1766140651099,1.18147377,845.04,843.7,0.88394933]
[1766140651502,1.18147377,845.04,843.71,0.88394933]
[1766140652098,1.17872802,844.97,843.63,0.88394933]
[1766140652302,1.18147377,844.96,843.63,0.88394933]
[1766140653206,1.18147377,844.96,843.67,0.88394933]
[1766140653399,2.36020179,844.95,843.61,0.88394933]
[1766140653602,1.18147377,844.94,843.61,0.88394933]
[1766140654004,1.17872802,844.93,843.59,0.88394933]
[1766140654200,1.17872802,844.79,843.45,0.88394933]
[1766140654404,1.18147377,844.78,843.44,0.88394933]
[1766140654700,1.18147377,844.77,843.44,0.88394933]
[1766140654900,1.18147377,844.77,843.28,1.18094036]
[1766140654901,1.18147377,844.76,843.42,0.88394933]
[1766140655201,1.18147377,844.75,843.4,0.88394933]
[1766140655406,1.18147377,844.75,843.38,0.88394933]
[1766140655606,2.36020179,844.74,843.34,0.88394933]
[1766140655806,1.18147377,844.73,843.34,0.88394933]
[1766140656006,1.18147377,844.73,843.37,0.88394933]
[1766140656206,1.18147377,844.72,843.38,0.88394933]
[1766140656506,1.18147377,844.71,843.36,0.88394933]
[1766140656703,1.18147377,844.7,843.37,0.88394933]
[1766140656903,1.18147377,844.69,843.44,0.88394933]
[1766140657108,0.20616236,844.37,843.44,0.88394933]
[1766140657308,0.20616236,844.37,843.43,0.88394933]
[1766140658008,0.20616236,844.37,843.44,0.88394933]
[1766140658310,0.20616236,844.37,843.45,0.88267913]
[1766140658508,0.20616236,844.37,843.44,0.88267913]
[1766140659208,0.20616236,844.37,843.49,0.88267913]
[1766140659508,0.20616236,844.37,843.47,0.88267913]
[1766140659710,0.20616236,844.37,843.42,0.88267913]
[1766140660010,0.20616236,844.37,843.4,0.88267913]
[1766140660310,0.20616236,844.37,843.39,0.88267913]
[1766140660708,0.20616236,844.37,843.32,0.88267913]
[1766140661105,0.20616236,844.37,843.31,0.88267913]
[1766140661409,0.20616236,844.37,843.3,0.88267913]
[1766140661710,0.20616236,844.37,843.38,0.88267913]
[1766140662409,0.20616236,844.37,843.37,0.88267913]
[1766140662806,0.20616236,844.37,843.19,0.20616236]
[1766140662807,0.20616236,844.37,843.3,0.88267913]
[1766140663408,0.20616236,844.37,843.29,0.88267913]
[1766140664509,0.20616236,844.37,843.19,0.20616236]
[1766140664510,0.20616236,844.37,843.28,0.88267913]
[1766140664708,0.20616236,844.37,843.23,0.88267913]
[1766140664909,0.20616236,844.37,843.33,0.88267913]
[1766140665110,0.20616236,844.37,843.49,0.88267913]
[1766140665612,0.20616236,844.37,843.5,0.88267913]
[1766140665908,0.20616236,844.37,843.58,0.88267913]
[1766140666809,0.20616236,844.37,843.55,0.88267913]
[1766140668415,0.20616236,844.37,843.56,0.88267913]
[1766140669312,0.20616236,844.37,843.52,0.88267913]
[1766140669510,0.20616236,844.37,843.6,0.88267913]
[1766140670016,0.2060525,844.67,843.78,0.88267913]
[1766140670418,0.2060525,844.67,843.79,0.88267913]
[1766140670919,0.2060525,844.67,843.7,0.88267913]
[1766140671418,0.2060525,844.67,843.63,0.88267913]
[1766140671618,0.2060525,844.67,843.59,0.88267913]
[1766140672014,0.2060525,844.67,843.6,0.88267913]
[1766140672217,0.2060525,844.67,843.68,0.88267913]
[1766140672415,0.2060525,844.67,843.61,0.88267913]
[1766140672821,0.2060525,844.67,843.56,0.88267913]
[1766140673420,0.2060525,844.67,843.57,0.88267913]
[1766140674322,0.2060525,844.67,843.58,0.88267913]
[1766140674522,0.2060525,844.67,843.61,0.88267913]
[1766140675521,0.2060525,844.67,843.54,0.88267913]
[1766140676525,0.2060525,844.67,843.61,0.88267913]
[1766140677427,0.2060525,844.67,843.63,0.88267913]
[1766140677628,0.2060525,844.67,843.61,0.88267913]
[1766140678124,0.2060525,844.67,843.59,0.88267913]
[1766140678324,0.2060525,844.67,843.6,0.88267913]
[1766140678526,0.2060525,844.67,843.61,0.88267913]
[1766140679524,0.2060525,844.67,843.63,0.88267913]
[1766140680727,0.2060525,844.67,843.71,0.88267913]
[1766140681625,0.2060525,844.67,843.19,0.20616236]
[1766140681626,0.2060525,844.67,843.66,0.88267913]
[1766140681832,0.2060525,844.67,843.74,0.88267913]
[1766140682028,0.2060525,844.67,843.67,0.88267913]
[1766140682233,0.2060525,844.67,843.72,0.88267913]
[1766140682433,0.2060525,844.67,843.74,0.88267913]
[1766140683534,0.2060525,844.67,843.71,0.88267913]
[1766140683931,0.2060525,844.67,843.82,0.88267913]
[1766140684136,0.2060525,844.67,843.75,0.88267913]
[1766140685137,0.2060525,844.67,843.81,0.88267913]
[1766140685333,0.2060525,844.67,843.82,0.88267913]
[1766140685636,0.2060525,844.67,843.76,0.88267913]
[1766140686236,0.2060525,844.67,843.75,0.88267913]
[1766140687034,0.2060525,844.67,843.72,0.88267913]
[1766140687433,0.2060525,844.67,843.73,0.88267913]
[1766140688340,0.2060525,844.67,843.74,0.88267913]
[1766140689039,0.2060525,844.67,843.76,0.88267913]
[1766140689435,0.2060525,844.67,843.75,0.88267913]
[1766140690043,0.2060525,844.67,843.45,1.76468733]
[1766140690044,0.2060525,844.67,843.77,0.88267913]
[1766140690334,0.2060525,844.67,843.83,0.88267913]
[1766140690735,0.2060525,844.67,843.82,0.88267913]
[1766140690936,0.2060525,844.67,843.78,0.88267913]
[1766140691337,0.2060525,844.67,843.79,0.88267913]
[1766140691538,0.2060525,844.67,843.82,0.88267913]
[1766140692041,0.2060525,844.67,843.73,0.88267913]
[1766140692437,0.2060525,844.67,843.74,0.88267913]
[1766140693138,0.2060525,844.67,843.76,0.88267913]
[1766140693442,0.2060525,844.67,843.77,0.88267913]
[1766140693837,0.2060525,844.67,843.8,0.88267913]
[1766140694738,0.2060525,844.67,843.78,0.88267913]
[1766140695341,0.2060525,844.67,843.79,0.88267913]
[1766140695542,0.2060525,844.67,843.8,0.88267913]
[1766140695742,0.2060525,844.67,843.78,0.88267913]
[1766140695944,0.2060525,844.67,843.72,0.88267913]
[1766140696442,0.2060525,844.67,843.73,0.88267913]
[1766140697045,0.2060525,844.67,843.8,0.88267913]
[1766140697342,0.2060525,844.67,843.76,0.88267913]
[1766140697547,0.2060525,844.67,843.8,0.88267913]
[1766140697948,0.2060525,844.67,843.77,0.88267913]
[1766140699043,0.2060525,844.67,843.76,0.88267913]
[1766140699950,0.2060525,844.67,843.92,0.88267913]
[1766140700149,0.2060525,844.67,843.85,0.88267913]
[1766140700350,0.2060525,844.67,843.78,0.88267913]
[1766140701045,0.2060525,844.67,843.75,0.88267913]
[1766140701945,0.2060525,844.67,843.77,0.88267913]
[1766140702951,0.2060525,844.67,843.67,0.88267913]
[1766140703148,0.2060525,844.67,843.52,1.17690551]
[1766140703448,0.2060525,844.67,843.69,0.88496492]
[1766140703948,0.2060525,844.67,843.76,0.88496492]
[1766140704251,0.2060525,844.67,843.72,0.88496492]
[1766140705952,0.2060525,844.67,843.73,0.88496492]
[1766140706150,0.2060525,844.67,843.8,0.88496492]
[1766140706856,0.2060525,844.67,843.75,0.88496492]
[1766140707750,0.2060525,844.67,843.74,0.88496492]
[1766140707951,0.2060525,844.67,843.79,0.88496492]
[1766140708951,0.2060525,844.67,843.78,0.88496492]
[1766140709155,0.2060525,844.67,843.75,0.88496492]
[1766140710052,0.2060525,844.67,843.83,0.88496492]
[1766140710455,0.2060525,844.67,843.88,0.88496492]
[1766140710856,0.2060525,844.67,843.83,0.88496492]
[1766140711054,0.2060525,844.67,843.81,0.88496492]
[1766140711253,0.2060525,844.67,843.19,0.20616236]
[1766140711254,0.2060525,844.67,843.88,0.88496492]
[1766140711953,0.2060525,844.67,843.93,0.88496492]
[1766140712356,0.2060525,844.67,843.91,0.88496492]
[1766140713056,0.2060525,844.67,843.9,0.88496492]
[1766140713460,0.2060525,844.67,843.89,0.88496492]
[1766140714160,0.2060525,844.67,843.96,0.88496492]
[1766140715057,0.2060525,844.67,843.89,0.88496492]
[1766140715362,0.2060525,844.67,843.99,0.88496492]
[1766140715656,0.2060525,844.67,843.19,0.20616236]
[1766140715657,0.2060525,844.67,843.91,0.88496492]
[1766140716160,0.2060525,844.67,843.98,0.88496492]
[1766140716357,0.2060525,844.67,843.99,0.88496492]
[1766140717161,0.2060525,844.67,843.93,0.88496492]
[1766140717961,0.2060525,844.67,843.99,0.88496492]
[1766140718958,0.2060525,844.67,843.95,0.88496492]
[1766140719162,0.2060525,844.67,843.94,0.88496492]
[1766140720162,0.2060525,844.67,843.92,0.88496492]
[1766140720358,0.2060525,844.67,843.93,0.88496492]
[1766140721262,0.2060525,844.67,843.88,0.88496492]
[1766140721463,0.2060525,844.67,843.86,0.88496492]
[1766140721659,0.2060525,844.67,843.19,0.20616236]
[1766140721660,0.2060525,844.67,843.79,0.88496492]
[1766140721958,0.2060525,844.67,843.85,0.88496492]
[1766140722360,0.2060525,844.67,843.89,0.88496492]
[1766140723360,0.2060525,844.67,843.93,0.88496492]
[1766140723860,0.2060525,844.67,843.89,0.88496492]
[1766140724364,0.2060525,844.67,843.91,0.88496492]
[1766140724562,0.2060525,844.67,843.87,0.88496492]
[1766140724765,0.2060525,844.67,843.98,0.88496492]
[1766140725466,0.2060525,844.67,844.06,0.88496492]
[1766140725768,0.2060525,844.67,843.96,0.88496492]
[1766140726262,0.2060525,844.67,843.96,0.88651668]
[1766140726761,0.2060525,844.67,843.95,0.88651668]
[1766140727965,0.2060525,844.67,843.9,0.88651668]
[1766140728666,0.2060525,844.67,843.88,0.88651668]
[1766140729765,0.2060525,844.67,843.85,0.88651668]
[1766140730365,0.2060525,844.67,843.93,0.88651668]
[1766140731966,0.2060525,844.67,843.88,0.88651668]
[1766140732166,0.2060525,844.67,843.94,0.88651668]
[1766140732363,0.2060525,844.67,843.79,1.17690551]
[1766140732364,0.2060525,844.67,844.02,0.88651668]
[1766140732665,0.2060525,844.67,844.0,0.88651668]
[1766140734968,0.2060525,844.67,844.02,0.88651668]
[1766140736265,0.2060525,844.67,843.99,0.88651668]
[1766140739170,0.2060525,844.67,844.05,0.88651668]
[1766140739673,0.2060525,844.67,843.99,0.88651668]
[1766140740376,0.2060525,844.67,843.96,0.88651668]
[1766140741574,0.2060525,844.67,844.02,0.88651668]
[1766140741772,0.2060525,844.67,843.97,0.88651668]
[1766140742775,0.2060525,844.67,843.98,0.88651668]
[1766140742973,0.2060525,844.67,843.97,0.88651668]
[1766140743974,0.2060525,844.67,843.19,0.20616236]
[1766140743975,0.2060525,844.67,843.89,0.88651668]
[1766140744472,0.2060525,844.67,843.88,0.88651668]
[1766140744677,0.2060525,844.67,843.86,0.88651668]
[1766140744877,0.2060525,844.67,843.78,0.88651668]
[1766140745077,0.2060525,844.67,843.73,0.88651668]
[1766140746076,0.2060525,844.67,843.76,0.88651668]
[1766140746577,0.2060525,844.67,843.77,0.88651668]
[1766140747678,1.39115895,844.67,843.82,0.88651668]
[1766140747875,1.18510645,844.66,843.82,0.88651668]
[1766140748079,1.18510645,844.66,843.79,0.88651668]
[1766140748280,1.18510645,844.66,843.78,0.88651668]
[1766140749577,1.18510645,844.66,843.84,0.88651668]
[1766140749778,1.18510645,844.66,843.78,0.88651668]
[1766140750179,1.18510645,844.66,843.83,0.88651668]
[1766140751885,1.18510645,844.66,843.79,0.88651668]
[1766140753183,1.18510645,844.66,843.84,0.88651668]
[1766140754285,1.18510645,844.66,843.83,0.88651668]
[1766140755187,1.18510645,844.66,843.84,0.88651668]
[1766140755488,1.18510645,844.66,843.83,0.88651668]
[1766140757092,1.18510645,844.66,843.82,0.88651668]
[1766140757393,1.18510645,844.66,843.81,0.88651668]
[1766140757793,1.18510645,844.66,843.77,0.88651668]
[1766140758390,1.18510645,844.66,843.75,0.88651668]
[1766140758589,1.18510645,844.66,843.71,0.88651668]
[1766140758793,1.18510645,844.66,843.69,0.88651668]
[1766140759390,1.18510645,844.66,843.68,0.88651668]
[1766140761197,1.18510645,844.66,843.67,0.88651668]
[1766140763197,1.18510645,844.66,843.66,0.88651668]
[1766140764193,1.18510645,844.66,843.61,0.88651668]
[1766140764598,1.18510645,844.66,843.63,0.88651668]
[1766140765599,1.18510645,844.66,843.62,0.88651668]
[1766140766195,1.18510645,844.66,843.61,0.88651668]
[1766140767197,1.18510645,844.66,843.6,0.88651668]
[1766140768602,1.18510645,844.66,843.5,0.88651668]
[1766140769005,1.18510645,844.66,843.54,0.88651668]
[1766140769202,1.18510645,844.66,843.53,0.88651668]
[1766140769602,1.18510645,844.66,843.56,0.88651668]
[1766140770105,1.18510645,844.66,843.55,0.88651668]
[1766140770300,1.18510645,844.66,843.53,0.88651668]
[1766140770502,1.18510645,844.66,843.5,0.88651668]
[1766140770902,1.18510645,844.66,843.49,0.88651668]
[1766140771607,1.18510645,844.66,843.19,0.20616236]
[1766140771608,1.18510645,844.66,843.5,0.88651668]
[1766140771907,1.18510645,844.66,843.51,0.88651668]
[1766140772703,1.18510645,844.66,843.5,0.88651668]
[1766140773708,1.18510645,844.66,843.59,0.88651668]
[1766140774007,1.18510645,844.66,843.5,0.88651668]
[1766140774208,1.18510645,844.66,843.49,0.88651668]
[1766140774609,1.18510645,844.66,843.48,0.88651668]
[1766140775610,1.18510645,844.66,843.61,0.88651668]
[1766140775904,1.18510645,844.66,843.6,0.88651668]
[1766140776104,1.18510645,844.66,843.52,0.88651668]
[1766140776509,1.18510645,844.66,843.5,0.88651668]
[1766140777509,1.18510645,844.66,843.52,0.88651668]
[1766140777909,1.18510645,844.66,843.5,0.88651668]
[1766140778106,1.18510645,844.66,843.34,1.17690551]
[1766140778107,1.18510645,844.66,843.46,0.88651668]
[1766140778506,1.18510645,844.66,843.41,0.88651668]
[1766140778911,2.35847057,844.66,843.38,0.88651668]
[1766140779210,1.18510645,844.65,843.37,0.88651668]
[1766140779411,1.17336412,844.62,843.32,0.88651668]
[1766140779608,1.18110936,844.61,843.32,0.88651668]
[1766140779812,1.18110936,844.61,843.39,0.88651668]
[1766140780012,1.18110936,844.6,843.43,0.88651668]
[1766140780208,1.18110936,844.59,843.42,0.88651668]
[1766140780408,1.18110936,844.58,843.43,0.88651668]
[1766140780615,1.18110936,844.57,843.49,0.88651668]
[1766140780809,1.18110936,844.56,843.49,0.88651668]
[1766140781109,1.18110936,844.55,843.49,0.88651668]
[1766140781412,1.18110936,844.54,843.49,0.88651668]
[1766140781608,1.18110936,844.53,843.49,0.88651668]
[1766140781908,1.18110936,844.52,843.46,0.88651668]
[1766140782106,1.18110936,844.51,843.46,0.88651668]
[1766140782309,1.18110936,844.5,843.46,0.88651668]
[1766140782509,1.18110936,844.49,843.46,0.88651668]
[1766140782812,0.2060525,844.67,843.48,0.88651668]
[1766140783514,0.2060525,844.67,843.5,0.88651668]
[1766140783915,0.2060525,844.67,843.48,0.88651668]
[1766140784815,0.2060525,844.67,843.49,0.88651668]
[1766140785215,0.2060525,844.67,843.5,0.88651668]
[1766140785413,0.2060525,844.67,843.48,0.88651668]
[1766140785916,1.38739936,844.67,843.43,0.88651668]
[1766140786117,1.18134686,844.66,843.43,0.88651668]
[1766140786316,1.18134686,844.65,843.43,0.88651668]
[1766140786516,1.18134686,844.64,843.43,0.88651668]
[1766140786715,1.18134686,844.63,843.43,0.88651668]
[1766140786916,1.18134686,844.62,843.47,0.88651668]
[1766140787116,1.18134686,844.61,843.47,0.88651668]
[1766140787312,1.18134686,844.6,843.47,0.88651668]
[1766140787617,1.18134686,844.59,843.47,0.88651668]
[1766140787816,1.18134686,844.58,843.47,0.88651668]
[1766140788017,1.18134686,844.57,843.44,0.88651668]
[1766140788216,1.18134686,844.56,843.44,0.88651668]
[1766140788518,1.18134686,844.55,843.44,0.88651668]
[1766140788718,1.18134686,844.54,843.44,0.88651668]
[1766140788919,1.18134686,844.53,843.46,0.88651668]
[1766140789119,1.18134686,844.52,843.46,0.88651668]
[1766140789320,1.18134686,844.51,843.46,0.88651668]
[1766140789520,1.18134686,844.5,843.46,0.88651668]
[1766140789718,1.18134686,844.49,843.46,0.88651668]
[1766140790021,1.18120759,844.48,843.42,0.88651668]
[1766140790217,1.18120759,844.47,843.42,0.88651668]
[1766140790521,1.18120759,844.46,843.37,0.88651668]
[1766140790717,0.2060525,844.67,843.37,0.88651668]
[1766140791021,0.2060525,844.67,843.43,0.88651668]
[1766140791216,0.2060525,844.67,843.45,0.88651668]
[1766140792622,0.2060525,844.67,843.44,0.88651668]
[1766140793322,0.2060525,844.67,843.29,1.17690551]
[1766140793520,0.2060525,844.67,843.11,0.20617457]
[1766140793521,0.2060525,844.67,843.46,0.8845731]
[1766140793723,0.2060525,844.67,843.39,0.8845731]
[1766140794722,0.2060525,844.67,843.44,0.8845731]
[1766140795321,0.2060525,844.67,843.45,0.8845731]
[1766140796118,0.2060525,844.67,843.52,0.8845731]
[1766140796323,0.2060525,844.67,843.11,0.20617457]
[1766140796324,0.2060525,844.67,843.53,0.8845731]
[1766140796524,0.2060525,844.67,843.45,0.8845731]
[1766140797122,1.38717439,844.67,843.45,0.8845731]
[1766140797425,1.18112189,844.66,843.47,0.8845731]
[1766140797626,1.18112189,844.65,843.47,0.8845731]
[1766140797822,1.18112189,844.64,843.47,0.8845731]
[1766140798023,1.18112189,844.63,843.47,0.8845731]
[1766140798224,1.18112189,844.62,843.48,0.8845731]
[1766140798423,1.18112189,844.61,843.45,0.8845731]
[1766140798625,1.18112189,844.6,843.45,0.8845731]
[1766140798824,1.18112189,844.59,843.45,0.8845731]
[1766140799025,1.18112189,844.59,843.29,1.17690551]
[1766140799026,1.18112189,844.58,843.44,0.8845731]
[1766140799327,1.18112189,844.57,843.45,0.8845731]
[1766140799527,1.18112189,844.56,843.37,0.8845731]
[1766140799725,1.18112189,844.55,843.37,0.8845731]
[1766140799928,1.18220953,844.54,843.37,0.8845731]
[1766140800128,1.18220953,844.53,843.37,0.8845731]
[1766140800327,1.18220953,844.52,843.37,0.8845731]
[1766140800526,1.18220953,844.51,843.37,0.88553216]
[1766140800725,1.18220953,844.5,843.37,0.88553216]
[1766140800926,1.18220953,844.49,843.33,0.88553216]
[1766140801126,1.18220953,844.48,843.34,0.88553216]
[1766140801326,1.18220953,844.47,843.33,0.88553216]
[1766140801531,1.18220953,844.46,843.33,0.88553216]
[1766140801830,1.18220953,844.45,843.33,0.88553216]
[1766140802028,1.18220953,844.44,843.36,0.88553216]
[1766140802233,1.18220953,844.43,843.36,0.88553216]
[1766140802530,1.18220953,844.42,843.36,0.88553216]
[1766140802831,1.18220953,844.41,843.33,0.88553216]
[1766140803028,1.18220953,844.4,843.32,0.88553216]
[1766140803242,1.18220953,844.39,843.33,0.88553216]
[1766140803428,1.18220953,844.38,843.33,0.88553216]
[1766140803632,1.18220953,844.37,843.25,0.88553216]
[1766140803833,1.17336412,844.46,843.25,0.88553216]
[1766140803834,1.18220953,844.36,843.25,0.88553216]
[1766140804029,1.18220953,844.35,843.27,0.88553216]
[1766140804232,1.18220953,844.34,843.27,0.88553216]
[1766140804531,1.18220953,844.33,843.27,0.88553216]
[1766140804729,1.18220953,844.32,843.27,0.88553216]
[1766140804933,1.18220953,844.31,843.27,0.88553216]
[1766140805134,1.18220953,844.3,843.26,0.88553216]
[1766140805333,1.18220953,844.29,843.27,0.88553216]
[1766140805533,1.18220953,844.28,843.27,0.88553216]
[1766140805730,1.18220953,844.27,843.18,0.88553216]
[1766140805930,1.18220953,844.26,843.17,0.88553216]
[1766140806134,1.18220953,844.25,843.19,0.88553216]
[1766140806332,1.18220953,844.24,843.18,0.88553216]
[1766140806531,1.18220953,844.23,843.18,0.88553216]
[1766140806730,1.17336412,844.44,843.18,0.88553216]
[1766140806731,1.18220953,844.22,843.18,0.88553216]
[1766140806935,1.18220953,844.21,843.18,0.88553216]
[1766140807236,1.18220953,844.2,843.15,0.88553216]
[1766140807437,1.18220953,844.19,843.16,0.88553216]
[1766140807638,1.18220953,844.18,843.16,0.88553216]
[1766140807837,1.18220953,844.17,843.16,0.88553216]
[1766140808138,1.18220953,844.16,843.15,0.88553216]
[1766140808333,1.17336412,844.44,843.14,0.88553216]
[1766140808532,1.18093471,844.43,843.14,0.88553216]
[1766140809234,1.18093471,844.43,843.13,0.88553216]
[1766140809434,1.18093471,844.43,843.22,0.88553216]
[1766140809633,1.18093471,844.42,843.22,0.88553216]
[1766140809839,1.18093471,844.41,843.22,0.88553216]
[1766140810039,1.18093471,844.4,843.16,0.88553216]
[1766140810339,1.17336412,844.47,843.15,0.88553216]
[1766140810340,1.18093471,844.39,843.15,0.88553216]
[1766140810538,1.18093471,844.38,843.15,0.88553216]
[1766140810738,1.18093471,844.37,843.15,0.88553216]
[1766140811035,1.18093471,844.36,843.15,0.88553216]
[1766140811234,1.17336412,844.46,843.14,0.88553216]
[1766140811440,1.18116266,844.45,843.15,0.88553216]
[1766140811641,1.18116266,844.44,843.22,0.88553216]
[1766140811842,1.18116266,844.43,843.22,0.88553216]
[1766140812042,1.18116266,844.42,843.22,0.88467544]
[1766140812239,1.18116266,844.41,843.22,0.88467544]